fUST/lending_fUST_20250805
["ID","MTS","AMOUNT","RATE_DAILY","PERIOD"]
[377409963,1754388643603,-151.0,0.00034996,3]
[377409965,1754388643612,-151.0,0.00034996,14]
[377409967,1754388643622,-2347.87260389,0.00034996,3]
[377409969,1754388643631,-151.0,0.00034996,14]
[377409971,1754388643641,-151.0,0.00034996,3]
[377409973,1754388643650,-2434.74389024,0.00034996,3]
[377409974,1754388643659,-500.0,0.00034996,3]
[377409976,1754388643669,-151.0,0.00034996,3]
[377409978,1754388643679,-232.29632925,0.00034996,3]
[377409980,1754388643689,-2524.82941417,0.00034996,3]
[377409982,1754388643698,-500.0,0.00034996,3]
[377409984,1754388643708,-151.0,0.00034996,3]
[377409986,1754388643717,-2618.2481025,0.00034996,3]
[377409988,1754388643727,-151.0,0.00034996,3]
[377409990,1754388643737,-2715.12328229,0.00034996,3]
[377409992,1754388643748,-151.0,0.00034996,3]
[377409994,1754388643757,-2589.57559817,0.00034996,3]
[377409996,1754388643766,-151.0,0.00034996,3]
[377409998,1754388643776,-252.08147018,0.00034996,3]
[377410000,1754388643785,-12726.07849452,0.00034996,3]
[377410019,1754388643991,1254.161372,0.00027404,120]
[377410055,1754388651733,-460.0,0.00028399,2]
[377410059,1754388682295,-40.0,0.00028399,2]
[377410060,1754388682317,-265.254097,0.00028399,2]
[377410061,1754388712212,-212.90167247,0.00028399,2]
[377410062,1754388713903,-21.84423053,0.00028399,2]
[377410063,1754388713931,-227.64757547,0.00028399,2]
[377410064,1754388721451,150.0,0.00024064,2]
[377410065,1754388741648,-281.13719943,0.00028398,2]
[377410066,1754388771870,-573.75347117,0.0002831,2]
[377410068,1754388786732,500.0,0.00030682,120]
[377410069,1754388802245,-460.0,0.00028298,2]
[377410070,1754388806982,500.0,0.00030682,120]
[377410071,1754388832473,-460.0,0.00027304,2]
[377410072,1754388835322,-154.745903,0.00027304,2]
[377410073,1754388852515,160.587826,0.00013699,2]
[377410075,1754388859606,-213.95841193,0.00027304,2]
[377410076,1754388862635,-171.29568507,0.00027304,2]
[377410077,1754388862656,-87.62394632,0.00027451,2]
[377410078,1754388870017,275.0,0.000283,120]
[377410079,1754388870461,275.0,0.0002829,120]
[377410080,1754388870937,275.0,0.0002828,120]
[377410082,1754388888163,392.74201947,0.000249,2]
[377410084,1754388888954,-113.15808673,0.00027451,2]
[377410085,1754388888977,-320.69491327,0.00028298,2]
[377410086,1754388890917,-295.047,0.00028298,2]
[377410087,1754388921692,-260.05579535,0.00028273,2]
[377410088,1754388923389,-201.467012,0.00028273,2]
[377410089,1754388937471,500.0,0.0003069,120]
[377410090,1754388950297,-460.0,0.00028273,2]
[377410091,1754388981676,-300.0,0.00028272,2]
[377410092,1754388981698,-160.0,0.00028273,2]
[377410093,1754389011631,-236.35928118,0.00028272,2]
[377410094,1754389041665,-963.64071882,0.00028272,2]
[377410095,1754389041688,-956.00451233,0.00028273,2]
[377410096,1754389047803,500.0,0.0003069,120]
[377410098,1754389071717,-460.0,0.00028198,2]
[377410099,1754389102216,-401.69320813,0.00028198,2]
[377410100,1754389132219,-479.86013935,0.00028198,2]
[377410101,1754389161854,-217.72414914,0.00028198,2]
[377410102,1754389179365,8966.87897132,0.0002706,2]
[377410103,1754389179388,15933.12102868,0.0002706,2]
[377410104,1754389191670,-179.483699,0.0002726,2]
[377410105,1754389191693,-111.616301,0.00028198,2]
[377410106,1754389193403,-228.43974667,0.00028198,2]
[377410108,1754389221818,-302.0,0.00028198,2]
[377410109,1754389223557,-158.0,0.00028198,2]
[377410110,1754389251726,-548.15985857,0.00028273,2]
[377410111,1754389251750,-2.17514953,0.00028273,2]
[377410113,1754389279338,4066.87897132,0.0002699,2]
[377410114,1754389279361,20000.0,0.0002699,2]
[377410115,1754389279382,20000.0,0.0002699,2]
[377410116,1754389279407,20000.0,0.0002699,2]
[377410117,1754389279428,20000.0,0.0002699,2]
[377410118,1754389279450,15933.12102868,0.0002699,2]
[377410119,1754389280219,-300.0,0.00028272,2]
[377410120,1754389280242,-370.924097,0.00028273,2]
[377410121,1754389284406,-234.745903,0.00028273,2]
[377410123,1754389311872,-438.52788684,0.0002821,2]
[377410124,1754389311894,-21.47211316,0.00028273,2]
[377410125,1754389342262,-469.96996308,0.00027288,2]
[377410127,1754389372304,-460.0,0.00027288,2]
[377410128,1754389401659,-460.0,0.00027288,2]
[377410129,1754389428821,-550.4,0.00027288,2]
[377410130,1754389461785,-460.0,0.00027288,2]
[377410131,1754389491912,-361.83250672,0.00027288,2]
[377410132,1754389491936,-107.42962508,0.00028196,2]
[377410133,1754389504586,210.77179143,0.000249,2]
[377410134,1754389504676,210.77179137,0.000249,2]
[377410135,1754389504814,161.315177,0.000249,2]
[377410136,1754389504851,49.45661437,0.000249,2]
[377410137,1754389504915,210.77179137,0.00025336,3]
[377410141,1754389530497,-456.11,0.00028199,2]
[377410142,1754389556349,150.0,0.00025204,2]
[377410144,1754389589539,193.0,0.000283,120]
[377410145,1754389589989,193.0,0.0002829,120]
[377410146,1754389590440,193.0,0.0002828,120]
[377410147,1754389600774,1985.755505,0.00027397,120]
[377410149,1754389670654,211.67947063,0.000249,2]
[377410150,1754389670797,211.67947056,0.000249,2]
[377410151,1754389670886,211.67947056,0.00025829,4]
[377410155,1754389726191,2600.06857103,0.0002249,7]
[377410156,1754389726216,9307.03693555,0.0002249,7]
[377410157,1754389726248,162.37450891,0.00024,2]
[377410158,1754389727560,161.0,0.00026,5]
[377410165,1754389827548,206.3393505,0.000249,2]
[377410166,1754389827626,206.33935045,0.000249,2]
[377410167,1754389827712,206.33935045,0.00025829,4]
[377410207,1754389832604,-313.459794,0.00027109,2]
[377410209,1754389832616,-4362.3069516,0.0002726,2]
[377410211,1754389832625,-300.0,0.00028187,2]
[377410213,1754389832635,-1200.0,0.00028187,2]
[377410215,1754389832644,-300.0,0.00028187,2]
[377410217,1754389832654,-300.0,0.00028187,2]
[377410219,1754389832663,-350.82230948,0.00028199,2]
[377410221,1754389832676,-6709.06238622,0.00028262,2]
[377410223,1754389832685,-49680.24076221,0.00028271,2]
[377410225,1754389832695,-1061.0,0.00028271,2]
[377410226,1754389832705,-500.0,0.00028271,2]
[377410228,1754389832715,-247.179729,0.00028271,2]
[377410231,1754389832725,-500.0,0.00028271,2]
[377410262,1754389832860,-500.0,0.00028271,2]
[377410264,1754389832870,-500.0,0.00028271,2]
[377410266,1754389832880,-500.0,0.00028271,2]
[377410268,1754389832889,-443.21934475,0.00028271,2]
[377410270,1754389832899,-500.0,0.00028271,2]
[377410272,1754389832909,-500.0,0.00028271,2]
[377410273,1754389832919,-500.0,0.00028271,2]
[377410275,1754389832928,-500.0,0.00028271,2]
[377410277,1754389832937,-500.0,0.00028271,2]
[377410279,1754389832946,-500.0,0.00028271,2]
[377410282,1754389832956,-500.0,0.00028271,2]
[377410284,1754389832966,-500.0,0.00028271,2]
[377410286,1754389832975,-500.0,0.00028271,2]
[377410288,1754389832985,-166.59827136,0.00028271,2]
[377410290,1754389832995,-500.0,0.00028271,2]
[377410292,1754389833004,-500.0,0.00028271,2]
[377410293,1754389833013,-500.0,0.00028271,2]
[377410296,1754389833023,-535.68793113,0.00028271,2]
[377410298,1754389833033,-500.0,0.00028271,2]
[377410300,1754389833042,-500.0,0.00028271,2]
[377410302,1754389833051,-500.0,0.00028271,2]
[377410303,1754389833061,-500.0,0.00028271,2]
[377410305,1754389833071,-500.0,0.00028271,2]
[377410307,1754389833080,-500.0,0.00028271,2]
[377410309,1754389833090,-500.0,0.00028271,2]
[377410311,1754389833099,-500.0,0.00028271,2]
[377410313,1754389833109,-500.0,0.00028271,2]
[377410315,1754389833118,-500.0,0.00028271,2]
[377410317,1754389833127,-500.0,0.00028271,2]
[377410319,1754389833136,-500.0,0.00028271,2]
[377410321,1754389833146,-500.0,0.00028271,2]
[377410323,1754389833155,-500.0,0.00028271,2]
[377410325,1754389833164,-500.0,0.00028271,2]
[377410327,1754389833174,-500.0,0.00028271,2]
[377410329,1754389833184,-500.0,0.00028271,2]
[377410330,1754389833196,-500.0,0.00028271,2]
[377410331,1754389833206,-500.0,0.00028271,2]
[377410332,1754389833216,-500.0,0.00028271,2]
[377410333,1754389833225,-500.0,0.00028271,2]
[377410334,1754389833236,-500.0,0.00028271,2]
[377410335,1754389833246,-500.0,0.00028271,2]
[377410336,1754389833256,-500.0,0.00028271,2]
[377410337,1754389833267,-500.0,0.00028271,2]
[377410338,1754389833278,-500.0,0.00028271,2]
[377410339,1754389833289,-500.0,0.00028271,2]
[377410340,1754389833300,-500.0,0.00028271,2]
[377410341,1754389833311,-500.0,0.00028271,2]
[377410342,1754389833321,-500.0,0.00028271,2]
[377410343,1754389833336,-500.0,0.00028271,2]
[377410344,1754389833351,-500.0,0.00028271,2]
[377410345,1754389833363,-500.0,0.00028271,2]
[377410346,1754389833375,-500.0,0.00028271,2]
[377410347,1754389833385,-500.0,0.00028271,2]
[377410348,1754389833396,-500.0,0.00028271,2]
[377410349,1754389833407,-500.0,0.00028271,2]
[377410350,1754389833417,-453.56879311,0.00028271,2]
[377410351,1754389833427,-500.0,0.00028271,2]
[377410352,1754389833438,-500.0,0.00028271,2]
[377410353,1754389833448,-500.0,0.00028271,2]
[377410354,1754389833458,-500.0,0.00028271,2]
[377410355,1754389833468,-500.0,0.00028271,2]
[377410356,1754389833478,-500.0,0.00028271,2]
[377410357,1754389833487,-500.0,0.00028273,5]
[377410359,1754389833497,-500.0,0.00028273,5]
[377410361,1754389833508,-500.0,0.00028273,5]
[377410363,1754389833518,-500.0,0.00028273,5]
[377410365,1754389833528,-500.0,0.00028273,5]
[377410367,1754389833538,-500.0,0.00028273,5]
[377410369,1754389833547,-26979.9495739,0.00028279,2]
[377410371,1754389833557,-663.64012681,0.00028279,2]
[377410373,1754389833568,-263.84784769,0.00028288,2]
[377410375,1754389833579,-500.0,0.00028288,2]
[377410377,1754389833589,-2654.56050724,0.00028289,2]
[377410379,1754389833600,-223.039,0.0002829,19]
[377410381,1754389833609,-62857.69421415,0.000283,2]
[377410396,1754389833743,-15397.20360724,0.000283,2]
[377410600,1754389836674,160.691733,0.00013699,2]
[377410622,1754389838531,-520.12976755,0.000283,2]
[377410645,1754389840668,-686.41345554,0.000283,2]
[377410646,1754389841205,-0.05780903,0.000283,2]
[377410779,1754389857679,150.0,0.000262,2]
[377410780,1754389982321,216.74745126,0.000249,2]
[377410781,1754389982402,216.74745122,0.000249,2]
[377410786,1754390107004,9006.38386866,0.0002691,2]
[377410787,1754390107030,15893.61613134,0.0002691,2]
[377410788,1754390139278,175.73604737,0.00030679,120]
[377410789,1754390143480,281.06043167,0.000249,2]
[377410790,1754390143568,281.06043156,0.000249,2]
[377410791,1754390143694,281.06043156,0.000249,2]
[377410792,1754390143785,281.06043156,0.000249,2]
[377410793,1754390143871,281.06043156,0.000249,2]
[377410794,1754390143958,281.06043156,0.000249,2]
[377410795,1754390144071,281.06043156,0.000249,2]
[377410796,1754390144163,281.06043156,0.000249,2]
[377410797,1754390144252,281.06043156,0.00025455,3]
[377410798,1754390144346,281.06043156,0.00026762,6]
[377410804,1754390158805,150.0,0.000262,2]
[377410805,1754390178427,170.38373266,0.0003,120]
[377410806,1754390181022,522.0,0.00030679,120]
[377410808,1754390223339,170.38373266,0.0003,120]
[377410810,1754390292437,400.0,0.00030679,30]
[377410811,1754390297962,680.39727782,0.000249,2]
[377410812,1754390298043,465.38227513,0.000249,2]
[377410813,1754390298071,215.01500266,0.000249,2]
[377410814,1754390298132,680.39727779,0.000249,2]
[377410815,1754390298251,680.39727779,0.000249,2]
[377410816,1754390298352,680.39727779,0.000249,2]
[377410817,1754390298434,680.39727779,0.000249,2]
[377410818,1754390298520,680.39727779,0.000249,2]
[377410819,1754390298609,680.39727779,0.000249,2]
[377410820,1754390298694,680.39727779,0.00025455,3]
[377410821,1754390300935,680.39727779,0.00026762,6]
[377410825,1754390309682,150.5,0.0002829,120]
[377410826,1754390310110,150.5,0.0002828,120]
[377410827,1754390310542,150.5,0.0002827,120]
[377410831,1754390400920,200.0,0.00025205,2]
[377410832,1754390441006,200.1,0.00026426,2]
[377410833,1754390453301,453.59818529,0.000249,2]
[377410834,1754390453384,453.59818519,0.000249,2]
[377410835,1754390453474,453.59818519,0.000249,2]
[377410836,1754390453555,453.59818519,0.000249,2]
[377410837,1754390453644,453.59818519,0.000249,2]
[377410838,1754390453743,453.59818519,0.000249,2]
[377410840,1754390453828,453.59818519,0.000249,2]
[377410841,1754390453917,453.59818519,0.000249,2]
[377410842,1754390454072,453.59818519,0.00025455,3]
[377410843,1754390454177,453.59818519,0.00026762,6]
[377410848,1754390469216,150.0,0.000262,2]
[377410851,1754390551719,236.194247,0.00026739,2]
[377410853,1754390607817,302.39879032,0.000249,2]
[377410854,1754390607883,302.39879012,0.000249,2]
[377410855,1754390608125,302.39879012,0.000249,2]
[377410856,1754390608204,302.39879012,0.000249,2]
[377410857,1754390608281,302.39879012,0.000249,2]
[377410858,1754390610486,302.39879012,0.000249,2]
[377410859,1754390610560,302.39879012,0.000249,2]
[377410860,1754390610639,302.39879012,0.000249,2]
[377410861,1754390610738,302.39879012,0.00025455,3]
[377410862,1754390610857,302.39879012,0.00026762,6]
[377410867,1754390632070,446.49,0.00030137,120]
[377410879,1754390698657,178.785616,0.0002646,2]
[377410887,1754390748482,1489.316628,0.00027397,120]
[377410889,1754390762226,201.59919351,0.000249,2]
[377410890,1754390762332,201.59919341,0.000249,2]
[377410891,1754390762422,201.59919341,0.000249,2]
[377410892,1754390762520,201.59919341,0.000249,2]
[377410893,1754390762606,201.59919341,0.000249,2]
[377410894,1754390762716,201.59919341,0.000249,2]
[377410895,1754390762801,201.59919341,0.000249,2]
[377410896,1754390762926,201.59919341,0.000249,2]
[377410897,1754390763005,201.59919341,0.00025455,3]
[377410898,1754390763254,201.59919341,0.00026762,6]
[377410900,1754390765371,160.822642,0.00013699,2]
[377410906,1754390796856,1370.54468655,0.00030683,120]
[377410915,1754390924210,201.59919341,0.000249,2]
[377410916,1754390924311,201.59919341,0.000249,2]
[377410917,1754390924396,201.59919341,0.000249,2]
[377410918,1754390924490,201.59919341,0.000249,2]
[377410919,1754390924578,201.59919341,0.000249,2]
[377410920,1754390924665,201.59919341,0.00024974,2]
[377410921,1754390924744,201.59919341,0.00026968,6]
[377410925,1754390927910,474.61279415,0.00026887,2]
[377410926,1754390929598,1754.1354344,0.00026887,2]
[377410927,1754390929620,142.41729102,0.00026887,2]
[377410938,1754391026197,1000.0,0.00026673,2]
[377410939,1754391031049,150.5,0.0002798,120]
[377410965,1754391031656,150.5,0.0002797,120]
[377410981,1754391031811,-214.41131181,0.00027253,2]
[377410984,1754391031821,-189.69198141,0.00027353,2]
[377410998,1754391031938,-170.38373267,0.0002745,2]
[377411000,1754391031948,-2714.18873186,0.00027889,2]
[377411002,1754391031958,-300.0,0.00027953,2]
[377411004,1754391031967,-300.0,0.00027953,2]
[377411007,1754391031976,-387.0,0.00027953,2]
[377411010,1754391031985,-3988.47424225,0.00027954,2]
[377411013,1754391031997,-484.23401523,0.00027954,2]
[377411016,1754391032007,-280.65784756,0.00027954,2]
[377411019,1754391032016,-500.0,0.00027973,5]
[377411022,1754391032026,-502.51483264,0.00027973,5]
[377411024,1754391032035,-500.0,0.00027973,5]
[377411026,1754391032043,-500.87322126,0.00027973,5]
[377411028,1754391032053,-3472.93640907,0.00027978,2]
[377411030,1754391032069,-256.12431474,0.00027978,2]
[377411033,1754391032080,-8860.11415479,0.00027978,2]
[377411050,1754391032240,150.5,0.0002796,120]
[377411210,1754391037639,-9068.7022739,0.00027978,2]
[377411211,1754391037650,-497.73009511,0.00027978,2]
[377411213,1754391037659,-13444.79437019,0.0002798,2]
[377411215,1754391037671,-21517.3,0.0002798,2]
[377411222,1754391039795,-8353.65993491,0.0002798,2]
[377411223,1754391039809,-995.46019022,0.0002798,2]
[377411224,1754391039818,-500.0,0.00027988,2]
[377411225,1754391039828,-500.0,0.00027988,2]
[377411226,1754391039837,-1391.33843649,0.00027988,2]
[377411227,1754391039846,-395.35687931,0.00027988,2]
[377411228,1754391039856,-178.56219373,0.00027988,2]
[377411229,1754391039866,-1391.33843649,0.00027988,2]
[377411230,1754391039875,-500.0,0.00027988,2]
[377411231,1754391039884,-500.0,0.00027988,2]
[377411232,1754391039894,-1391.33843649,0.00027988,2]
[377411233,1754391039904,-1391.33843649,0.00027988,2]
[377411234,1754391039914,-500.0,0.00027988,2]
[377411235,1754391039923,-1391.33843649,0.00027988,2]
[377411236,1754391039933,-1391.33843649,0.00027988,2]
[377411237,1754391039943,-500.0,0.00027988,2]
[377411238,1754391039952,-1391.33843649,0.00027988,2]
[377411239,1754391039962,-1391.33843649,0.00027988,2]
[377411240,1754391039972,-500.0,0.00027988,2]
[377411241,1754391039982,-1391.33843649,0.00027988,2]
[377411242,1754391039991,-1391.33843649,0.00027988,2]
[377411243,1754391040000,-1391.33843649,0.00027988,2]
[377411244,1754391040009,-1391.33843649,0.00027988,2]
[377411245,1754391040019,-1391.33843649,0.00027988,2]
[377411246,1754391040028,-1391.33843649,0.00027988,2]
[377411247,1754391040037,-1391.33843649,0.00027988,2]
[377411248,1754391040046,-1391.33843649,0.00027988,2]
[377411249,1754391040056,-1391.33843649,0.00027988,2]
[377411250,1754391040065,-1391.33843649,0.00027988,2]
[377411251,1754391040074,-1391.33843649,0.00027988,2]
[377411252,1754391040083,-1391.33843649,0.00027988,2]
[377411253,1754391040092,-1391.33843649,0.00027988,2]
[377411254,1754391040101,-1391.33843649,0.00027988,2]
[377411255,1754391040111,-1391.33843649,0.00027988,2]
[377411256,1754391040120,-1391.33843649,0.00027988,2]
[377411257,1754391040129,-1391.33843649,0.00027988,2]
[377411258,1754391040138,-1391.33843649,0.00027988,2]
[377411259,1754391040147,-1391.33843649,0.00027988,2]
[377411260,1754391040156,-1391.33843649,0.00027988,2]
[377411261,1754391040165,-1391.33843649,0.00027988,2]
[377411262,1754391040175,-1391.33843649,0.00027988,2]
[377411263,1754391040184,-1391.33843649,0.00027988,2]
[377411264,1754391040193,-1391.33843649,0.00027988,2]
[377411265,1754391040202,-1391.33843649,0.00027988,2]
[377411266,1754391040212,-1391.33843649,0.00027988,2]
[377411267,1754391040222,-1391.33843649,0.00027988,2]
[377411268,1754391040231,-1391.33843649,0.00027988,2]
[377411269,1754391040241,-1391.33843649,0.00027988,2]
[377411270,1754391040250,-1391.33843649,0.00027988,2]
[377411271,1754391040260,-1391.33843649,0.00027988,2]
[377411272,1754391040270,-1391.33843649,0.00027988,2]
[377411273,1754391040279,-1391.33843649,0.00027988,2]
[377411274,1754391040288,-1391.33843649,0.00027988,2]
[377411275,1754391040297,-1391.33843649,0.00027988,2]
[377411276,1754391040307,-1391.33843649,0.00027988,2]
[377411277,1754391040320,-1391.33843649,0.00027988,2]
[377411278,1754391040330,-1391.33843649,0.00027988,2]
[377411279,1754391040339,-1391.33843649,0.00027988,2]
[377411280,1754391040348,-1391.33843649,0.00027988,2]
[377411281,1754391040358,-1391.33843649,0.00027988,2]
[377411282,1754391040368,-1391.33843649,0.00027988,2]
[377411283,1754391040378,-1391.33843649,0.00027988,2]
[377411284,1754391040387,-1391.33843649,0.00027988,2]
[377411285,1754391040397,-1391.33843649,0.00027988,2]
[377411286,1754391040406,-1391.33843649,0.00027988,2]
[377411287,1754391040416,-1359.53641508,0.00027988,2]
[377411288,1754391040427,-1359.53641508,0.00027988,2]
[377411289,1754391040438,-1359.53641508,0.00027988,2]
[377411290,1754391040448,-1359.53641508,0.00027988,2]
[377411291,1754391040458,-1359.53641508,0.00027988,2]
[377411292,1754391040467,-1359.53641508,0.00027988,2]
[377411293,1754391040477,-1359.53641508,0.00027988,2]
[377411294,1754391040487,-1359.53641508,0.00027988,2]
[377411295,1754391040496,-1359.53641508,0.00027988,2]
[377411296,1754391040506,-1359.53641508,0.00027988,2]
[377411297,1754391040515,-1359.53641508,0.00027988,2]
[377411298,1754391040525,-1359.53641508,0.00027988,2]
[377411299,1754391040535,-1359.53641508,0.00027988,2]
[377411300,1754391040545,-1359.53641508,0.00027988,2]
[377411301,1754391040557,-1359.53641508,0.00027988,2]
[377411302,1754391040568,-1359.53641508,0.00027988,2]
[377411303,1754391040578,-1359.53641508,0.00027988,2]
[377411304,1754391040588,-1359.53641508,0.00027988,2]
[377411305,1754391040599,-1359.53641508,0.00027988,2]
[377411306,1754391040608,-1359.53641508,0.00027988,2]
[377411307,1754391040618,-1359.53641508,0.00027988,2]
[377411308,1754391040628,-1359.53641508,0.00027988,2]
[377411309,1754391040639,-1359.53641508,0.00027988,2]
[377411310,1754391040650,-1359.53641508,0.00027988,2]
[377411311,1754391040659,-1359.53641508,0.00027988,2]
[377411312,1754391040669,-1359.53641508,0.00027988,2]
[377411313,1754391040678,-1359.53641508,0.00027988,2]
[377411314,1754391040688,-1359.53641508,0.00027988,2]
[377411315,1754391040698,-1359.53641508,0.00027988,2]
[377411316,1754391040707,-1359.53641508,0.00027988,2]
[377411317,1754391040717,-1359.53641508,0.00027988,2]
[377411318,1754391040727,-1359.53641508,0.00027988,2]
[377411319,1754391040737,-1359.53641508,0.00027988,2]
[377411320,1754391040746,-1359.53641516,0.00027988,2]
[377411321,1754391040756,-1359.53641516,0.00027988,2]
[377411322,1754391040766,-7877.24842915,0.0002799,2]
[377411323,1754391040777,-18705.16318019,0.0002799,2]
[377411974,1754391055446,150.0,0.00024784,2]
[377411986,1754391072093,201.59919341,0.000249,2]
[377411987,1754391072201,201.59919341,0.000249,2]
[377411988,1754391072312,201.59919341,0.000249,2]
[377411989,1754391072365,150.0,0.0002589,2]
[377411990,1754391072401,201.59919341,0.000249,2]
[377411991,1754391072429,17751.18593534,0.00026983,2]
[377411992,1754391072450,7148.81406466,0.00026983,2]
[377412018,1754391225052,201.59919341,0.000249,2]
[377412019,1754391230456,201.59919341,0.000249,2]
[377412020,1754391230557,201.59919341,0.000249,2]
[377412028,1754391257730,327.92350255,0.00026887,2]
[377412029,1754391259626,1310.38231621,0.00026887,2]
[377412042,1754391373495,150.0,0.0002589,2]
[377412043,1754391383353,201.50707425,0.000249,2]
[377412044,1754391383438,201.50707424,0.000249,2]
[377412051,1754391487189,3321.32,0.00030679,30]
[377412052,1754391537958,215.1867709,0.000249,2]
[377412061,1754391621204,178.320228,0.00026907,2]
[377412065,1754391700514,201.686161,0.00026975,2]
[377412066,1754391749791,150.5,0.00028147,120]
[377412067,1754391750186,150.5,0.00028137,120]
[377412068,1754391750628,150.97,0.00028127,120]
[377412069,1754391762931,1116.987471,0.00027397,120]
[377412070,1754391786650,1369.744,0.00030673,120]
[377412075,1754391833394,463.31975935,0.0003,120]
[377412077,1754391848367,522.0,0.00030673,120]
[377412082,1754391865905,522.0,0.00030673,120]
[377412083,1754391876228,522.0,0.00030673,120]
[377412084,1754391878855,9459.87522796,0.0002699,2]
[377412085,1754391878878,20000.0,0.0002699,2]
[377412086,1754391878900,20000.0,0.0002699,2]
[377412087,1754391878923,20000.0,0.0002699,2]
[377412088,1754391878948,20000.0,0.0002699,2]
[377412089,1754391878972,10540.12477204,0.0002699,2]
[377412090,1754391898890,1571.5520034,0.00030673,120]
[377412091,1754391915986,1000.0,0.00030673,120]
[377412093,1754391958681,988.68,0.00030673,120]
[377412095,1754391962556,161.358538,0.00013699,2]
[377412096,1754391963052,1000.0,0.00026884,2]
[377412101,1754391995317,500.0,0.00030673,120]
[377412110,1754392037377,586.13,0.00027101,2]
[377412111,1754392046701,500.0,0.00030673,120]
[377412117,1754392080925,7712.38668996,0.00026883,2]
[377412118,1754392080950,17187.61331004,0.00026883,2]
[377412134,1754392152227,345.27,0.00030136,120]
[377412186,1754392231987,-1386.29220507,0.00027865,2]
[377412187,1754392232000,-1200.000002,0.00027865,2]
[377412196,1754392232093,-395.51329791,0.00027865,2]
[377412198,1754392232103,-549.20627777,0.00027873,5]
[377412200,1754392232113,-202.18409345,0.00027873,5]
[377412202,1754392232122,-261.59570412,0.00027873,5]
[377412205,1754392232131,-351.92929936,0.00027873,2]
[377412208,1754392232141,-151.0,0.00027873,2]
[377412211,1754392232150,-151.0,0.00027873,2]
[377412214,1754392232160,-151.0,0.00027873,2]
[377412216,1754392232169,-151.0,0.00027873,2]
[377412219,1754392232179,-151.0,0.00027873,2]
[377412221,1754392232189,-151.0,0.00027873,2]
[377412224,1754392232198,-151.0,0.00027873,2]
[377412227,1754392232207,-151.0,0.00027873,2]
[377412229,1754392232216,-151.0,0.00027873,2]
[377412231,1754392232226,-151.0,0.00027873,2]
[377412233,1754392232235,-151.0,0.00027873,2]
[377412235,1754392232245,-151.0,0.00027873,2]
[377412237,1754392232255,-151.0,0.00027873,2]
[377412239,1754392232264,-151.0,0.00027873,2]
[377412241,1754392232274,-151.0,0.00027873,2]
[377412243,1754392232284,-151.0,0.00027873,2]
[377412244,1754392232293,-151.0,0.00027873,2]
[377412245,1754392232302,-151.0,0.00027873,2]
[377412247,1754392232311,-151.0,0.00027873,2]
[377412249,1754392232321,-151.0,0.00027873,2]
[377412251,1754392232330,-151.0,0.00027873,2]
[377412253,1754392232340,-151.0,0.00027873,2]
[377412255,1754392232349,-151.0,0.00027873,2]
[377412257,1754392232358,-151.0,0.00027873,2]
[377412259,1754392232367,-151.0,0.00027873,2]
[377412260,1754392232376,-151.0,0.00027873,2]
[377412261,1754392232387,-250.0,0.00027873,2]
[377412262,1754392232396,-151.0,0.00027873,2]
[377412263,1754392232405,-151.0,0.00027873,2]
[377412264,1754392232415,-250.0,0.00027873,2]
[377412265,1754392232424,-151.0,0.00027873,2]
[377412266,1754392232433,-250.0,0.00027873,2]
[377412267,1754392232443,-151.0,0.00027873,2]
[377412268,1754392232452,-151.0,0.00027873,2]
[377412269,1754392232462,-250.0,0.00027873,2]